[Event "Titled Tuesday Blitz May 24 Late 2022"]
[White "Guzman, Christopher"]
[Black "Silva, Pedro Gil Ferreira Da"]
[WhiteFideId "6405096"]
[BlackFideId "1946102"]
[WhiteElo "2244"]
[BlackElo "1863"]
[Result "0-1"]
[Round "05"]
[TimeControl "180+1"]
[Date "2022.05.25"]
[WhiteClock "0:01:25"]
[BlackClock "0:00:17"]

1. e4 {[%clk 0:02:59]}  c6 {[%clk 0:02:59]} 2. d4 {[%clk 0:02:59]}  d5 {[%clk 0:02:59]} 3. exd5 {[%clk 0:03:00]}  cxd5 {[%clk 0:03:00]} 4. Bd3 {[%clk 0:03:01]}  Nc6 {[%clk 0:02:59]} 5. c3 {[%clk 0:03:02]}  Qc7 {[%clk 0:02:59]} 6. f4 {[%clk 0:03:02]}  Nf6 {[%clk 0:02:58]} 7. Nf3 {[%clk 0:03:02]}  Bg4 {[%clk 0:02:58]} 8. O-O {[%clk 0:03:01]}  e6 {[%clk 0:02:58]} 9. Qe1 {[%clk 0:03:01]}  Bxf3 {[%clk 0:02:57]} 10. Rxf3 {[%clk 0:03:01]}  Bd6 {[%clk 0:02:56]} 11. Be3 {[%clk 0:03:01]}  O-O {[%clk 0:02:55]} 12. Nd2 {[%clk 0:03:02]}  Ne7 {[%clk 0:02:46]} 13. Qe2 {[%clk 0:02:58]}  Nf5 {[%clk 0:02:42]} 14. Raf1 {[%clk 0:02:56]}  Nxe3 {[%clk 0:02:31]} 15. Qxe3 {[%clk 0:02:55]}  b5 {[%clk 0:02:28]} 16. Rh3 {[%clk 0:02:45]}  b4 {[%clk 0:02:05]} 17. g4 {[%clk 0:02:44]}  bxc3 {[%clk 0:01:57]} 18. bxc3 {[%clk 0:02:36]}  g6 {[%clk 0:01:49]} 19. f5 {[%clk 0:02:34]}  exf5 {[%clk 0:01:46]} 20. Qh6 {[%clk 0:02:29]}  Qxc3 {[%clk 0:01:32]} 21. Nf3 {[%clk 0:02:15]}  Qxd3 {[%clk 0:01:25]} 22. Ng5 {[%clk 0:02:06]}  Qxd4+ {[%clk 0:01:23]} 23. Kh1 {[%clk 0:02:05]}  Rae8 {[%clk 0:00:59]} 24. Nxh7 {[%clk 0:02:05]}  Qe4+ {[%clk 0:00:58]} 25. Rhf3 {[%clk 0:01:49]}  Nxh7 {[%clk 0:00:57]} 26. gxf5 {[%clk 0:01:49]}  Re5 {[%clk 0:00:47]} 27. Kg1 {[%clk 0:01:43]}  Bc5+ {[%clk 0:00:26]} 28. Kg2 {[%clk 0:01:42]}  Rxf5 {[%clk 0:00:26]} 29. h4 {[%clk 0:01:41]}  Qg4+ {[%clk 0:00:23]} 30. Rg3 {[%clk 0:01:39]}  Qh5 {[%clk 0:00:23]} 31. Qd2 {[%clk 0:01:27]}  Rxf1 {[%clk 0:00:23]} 32. Kxf1 {[%clk 0:01:28]}  Qxh4 {[%clk 0:00:22]} 33. Kg2 {[%clk 0:01:28]}  Qd4 {[%clk 0:00:20]} 34. Qh6 {[%clk 0:01:27]}  Qg1+ {[%clk 0:00:19]} 35. Kf3 {[%clk 0:01:26]}  Qf2+ {[%clk 0:00:19]} 36. Kg4 {[%clk 0:01:26]}  Qf5+ {[%clk 0:00:19]} 37. Kh4 {[%clk 0:01:25]}  Be7+ {[%clk 0:00:17]} 0-1


[Site "https://www.chess.com"]

[Event "Titled Tuesday Blitz May 24 Late 2022"]
[White "Janaszak, Dawid"]
[Black "Drygalov, Sergey"]
[WhiteFideId "1119206"]
[BlackFideId "24171743"]
[WhiteElo "2199"]
[BlackElo "2514"]
[Result "0-1"]
[Round "05"]
[TimeControl "180+1"]
[Date "2022.05.24"]
[WhiteClock "0:00:08"]
[BlackClock "0:00:48"]

1. e4 {[%clk 0:03:00]}  c5 {[%clk 0:02:59]} 2. Nc3 {[%clk 0:03:00]}  d6 {[%clk 0:02:59]} 3. f4 {[%clk 0:02:59]}  Nc6 {[%clk 0:02:57]} 4. Nf3 {[%clk 0:02:59]}  g6 {[%clk 0:02:57]} 5. Bc4 {[%clk 0:02:59]}  Bg7 {[%clk 0:02:57]} 6. O-O {[%clk 0:02:59]}  e6 {[%clk 0:02:56]} 7. d4 {[%clk 0:02:59]}  cxd4 {[%clk 0:02:53]} 8. Nb5 {[%clk 0:02:58]}  Nge7 {[%clk 0:02:53]} 9. Bb3 {[%clk 0:02:58]}  O-O {[%clk 0:02:50]} 10. Nbxd4 {[%clk 0:02:58]}  a5 {[%clk 0:02:42]} 11. a4 {[%clk 0:02:39]}  d5 {[%clk 0:02:22]} 12. e5 {[%clk 0:02:35]}  b6 {[%clk 0:02:22]} 13. Be3 {[%clk 0:02:28]}  Ba6 {[%clk 0:02:22]} 14. Re1 {[%clk 0:02:29]}  Rc8 {[%clk 0:02:22]} 15. c3 {[%clk 0:02:24]}  Nf5 {[%clk 0:02:19]} 16. Nxf5 {[%clk 0:02:19]}  gxf5 {[%clk 0:02:20]} 17. Bc2 {[%clk 0:02:08]}  Kh8 {[%clk 0:02:13]} 18. Bd3 {[%clk 0:02:08]}  Bb7 {[%clk 0:02:10]} 19. Qd2 {[%clk 0:02:01]}  Ba8 {[%clk 0:02:03]} 20. Qf2 {[%clk 0:02:00]}  Rb8 {[%clk 0:02:04]} 21. Red1 {[%clk 0:01:50]}  h6 {[%clk 0:02:01]} 22. h3 {[%clk 0:01:48]}  Rg8 {[%clk 0:02:01]} 23. Kh2 {[%clk 0:01:48]}  Bf8 {[%clk 0:02:01]} 24. Rg1 {[%clk 0:01:43]}  Bc5 {[%clk 0:02:00]} 25. g4 {[%clk 0:01:42]}  fxg4 {[%clk 0:01:59]} 26. hxg4 {[%clk 0:01:40]}  d4 {[%clk 0:01:58]} 27. cxd4 {[%clk 0:01:35]}  Nb4 {[%clk 0:01:56]} 28. Bb1 {[%clk 0:01:03]}  Bf8 {[%clk 0:01:52]} 29. g5 {[%clk 0:01:03]}  Rc8 {[%clk 0:01:48]} 30. f5 {[%clk 0:00:51]}  Bxf3 {[%clk 0:01:28]} 31. Qxf3 {[%clk 0:00:51]}  Nc2 {[%clk 0:01:28]} 32. Bxc2 {[%clk 0:00:31]}  Rxc2+ {[%clk 0:01:29]} 33. Rg2 {[%clk 0:00:31]}  Rxg2+ {[%clk 0:01:26]} 34. Kxg2 {[%clk 0:00:31]}  Be7 {[%clk 0:01:13]} 35. f6 {[%clk 0:00:28]}  Bf8 {[%clk 0:01:13]} 36. Rh1 {[%clk 0:00:27]}  Qc7 {[%clk 0:01:08]} 37. Kf2 {[%clk 0:00:22]}  Qc2+ {[%clk 0:01:07]} 38. Qe2 {[%clk 0:00:23]}  Qxa4 {[%clk 0:01:04]} 39. gxh6 {[%clk 0:00:18]}  Qc6 {[%clk 0:01:04]} 40. Qf3 {[%clk 0:00:18]}  Qc2+ {[%clk 0:01:03]} 41. Qe2 {[%clk 0:00:18]}  Rg2+ {[%clk 0:01:00]} 42. Kxg2 {[%clk 0:00:17]}  Qxe2+ {[%clk 0:01:00]} 43. Bf2 {[%clk 0:00:18]}  Qxb2 {[%clk 0:01:00]} 44. h7 {[%clk 0:00:16]}  a4 {[%clk 0:01:00]} 45. Rh3 {[%clk 0:00:12]}  a3 {[%clk 0:00:57]} 46. Rg3 {[%clk 0:00:13]}  a2 {[%clk 0:00:55]} 47. Rg8+ {[%clk 0:00:13]}  Kxh7 {[%clk 0:00:56]} 48. Rxf8 {[%clk 0:00:14]}  a1=Q {[%clk 0:00:54]} 49. Rxf7+ {[%clk 0:00:14]}  Kh6 {[%clk 0:00:53]} 50. Rf8 {[%clk 0:00:08]}  Qaa2 {[%clk 0:00:51]} 51. Rh8+ {[%clk 0:00:08]}  Kg6 {[%clk 0:00:51]} 52. Rg8+ {[%clk 0:00:08]}  Kf5 {[%clk 0:00:48]} 53. f7 {[%clk 0:00:08]}  Qxf2+ {[%clk 0:00:48]} 0-1


[Site "https://www.chess.com"]

[Event "Titled Tuesday Blitz May 24 Late 2022"]
[White "Jeet, Jain"]
[Black "Vivas Zamora, Fabian Ernesto"]
[WhiteFideId "5073022"]
[BlackFideId "3902480"]
[WhiteElo "2028"]
[BlackElo "1987"]
[Result "0-1"]
[Round "05"]
[TimeControl "180+1"]
[Date "2022.05.25"]
[WhiteClock "0:00:53"]
[BlackClock "0:00:07"]

1. Nf3 {[%clk 0:02:58]}  Nf6 {[%clk 0:02:58]} 2. g3 {[%clk 0:02:57]}  g6 {[%clk 0:02:58]} 3. Bg2 {[%clk 0:02:57]}  Bg7 {[%clk 0:02:58]} 4. O-O {[%clk 0:02:58]}  O-O {[%clk 0:02:59]} 5. d3 {[%clk 0:02:54]}  d5 {[%clk 0:02:59]} 6. Nbd2 {[%clk 0:02:49]}  d4 {[%clk 0:02:57]} 7. c4 {[%clk 0:02:47]}  c5 {[%clk 0:02:53]} 8. a3 {[%clk 0:02:47]}  a5 {[%clk 0:02:50]} 9. Rb1 {[%clk 0:02:45]}  Nc6 {[%clk 0:02:50]} 10. Ne1 {[%clk 0:02:38]}  a4 {[%clk 0:02:41]} 11. b4 {[%clk 0:02:37]}  axb3 {[%clk 0:02:40]} 12. Nxb3 {[%clk 0:02:37]}  Qd6 {[%clk 0:02:34]} 13. e3 {[%clk 0:02:33]}  e5 {[%clk 0:02:31]} 14. exd4 {[%clk 0:02:30]}  cxd4 {[%clk 0:02:24]} 15. f4 {[%clk 0:02:23]}  Nd7 {[%clk 0:02:19]} 16. Nf3 {[%clk 0:02:21]}  Re8 {[%clk 0:01:49]} 17. Re1 {[%clk 0:02:20]}  b6 {[%clk 0:01:10]} 18. Nfxd4 {[%clk 0:02:06]}  Bb7 {[%clk 0:00:34]} 19. Nb5 {[%clk 0:02:06]}  Qb8 {[%clk 0:00:31]} 20. fxe5 {[%clk 0:02:04]}  Ncxe5 {[%clk 0:00:29]} 21. N3d4 {[%clk 0:01:42]}  Bxg2 {[%clk 0:00:27]} 22. Kxg2 {[%clk 0:01:42]}  Qb7+ {[%clk 0:00:27]} 23. Kg1 {[%clk 0:01:38]}  Nxd3 {[%clk 0:00:08]} 24. Rxe8+ {[%clk 0:01:34]}  Rxe8 {[%clk 0:00:09]} 25. Qxd3 {[%clk 0:00:59]}  Re1+ {[%clk 0:00:09]} 26. Kf2 {[%clk 0:00:59]}  Qh1 {[%clk 0:00:09]} 27. Ne2 {[%clk 0:01:00]}  Qf1+ {[%clk 0:00:08]} 28. Ke3 {[%clk 0:00:59]}  Bh6+ {[%clk 0:00:06]} 29. Kd4 {[%clk 0:00:55]}  Qf6+ {[%clk 0:00:06]} 30. Kd5 {[%clk 0:00:54]}  Qe6+ {[%clk 0:00:06]} 31. Kd4 {[%clk 0:00:53]}  Qe5# {[%clk 0:00:07]} 0-1


[Site "https://www.chess.com"]

[Event "Titled Tuesday Blitz May 24 Late 2022"]
[White "Kaasen, Tor Fredrik"]
[Black "Papp, Levente"]
[WhiteFideId "1516647"]
[BlackFideId "751243"]
[WhiteElo "2335"]
[BlackElo "2308"]
[Result "0-1"]
[Round "05"]
[TimeControl "180+1"]
[Date "2022.05.24"]
[WhiteClock "0:00:05"]
[BlackClock "0:00:06"]

1. e4 {[%clk 0:03:00]}  e6 {[%clk 0:02:59]} 2. d4 {[%clk 0:03:00]}  d5 {[%clk 0:02:59]} 3. Nc3 {[%clk 0:03:01]}  Bb4 {[%clk 0:02:59]} 4. e5 {[%clk 0:03:01]}  Ne7 {[%clk 0:02:59]} 5. a3 {[%clk 0:03:01]}  Bxc3+ {[%clk 0:03:00]} 6. bxc3 {[%clk 0:03:02]}  b6 {[%clk 0:03:01]} 7. Qg4 {[%clk 0:02:57]}  Ng6 {[%clk 0:03:01]} 8. h4 {[%clk 0:02:55]}  h5 {[%clk 0:03:01]} 9. Qg3 {[%clk 0:02:55]}  Ba6 {[%clk 0:03:01]} 10. Bxa6 {[%clk 0:02:53]}  Nxa6 {[%clk 0:03:01]} 11. Bg5 {[%clk 0:02:52]}  Qd7 {[%clk 0:03:01]} 12. Ne2 {[%clk 0:02:53]}  Qa4 {[%clk 0:03:01]} 13. Qd3 {[%clk 0:02:39]}  c5 {[%clk 0:02:54]} 14. O-O {[%clk 0:02:39]}  Ne7 {[%clk 0:02:51]} 15. Bxe7 {[%clk 0:02:38]}  Kxe7 {[%clk 0:02:52]} 16. Nf4 {[%clk 0:02:23]}  Rac8 {[%clk 0:02:42]} 17. Qg3 {[%clk 0:02:18]}  g6 {[%clk 0:02:37]} 18. Qg5+ {[%clk 0:02:17]}  Kd7 {[%clk 0:02:35]} 19. Qf6 {[%clk 0:02:15]}  Rhf8 {[%clk 0:02:22]} 20. Rad1 {[%clk 0:01:58]}  Nc7 {[%clk 0:02:01]} 21. Rfe1 {[%clk 0:01:46]}  Kc6 {[%clk 0:01:55]} 22. dxc5 {[%clk 0:01:39]}  bxc5 {[%clk 0:01:53]} 23. Rb1 {[%clk 0:01:18]}  Rce8 {[%clk 0:01:37]} 24. Red1 {[%clk 0:00:56]}  Qxc2 {[%clk 0:01:28]} 25. c4 {[%clk 0:00:35]}  d4 {[%clk 0:00:57]} 26. Nd3 {[%clk 0:00:29]}  Qe2 {[%clk 0:00:57]} 27. Qf4 {[%clk 0:00:14]}  Rb8 {[%clk 0:00:56]} 28. Rbc1 {[%clk 0:00:09]}  Rfd8 {[%clk 0:00:18]} 29. Qxf7 {[%clk 0:00:09]}  Rb3 {[%clk 0:00:15]} 30. Nf4 {[%clk 0:00:09]}  Qg4 {[%clk 0:00:14]} 31. Nxg6 {[%clk 0:00:09]}  d3 {[%clk 0:00:13]} 32. Ne7+ {[%clk 0:00:09]}  Kb7 {[%clk 0:00:13]} 33. Rb1 {[%clk 0:00:09]}  Ka6 {[%clk 0:00:11]} 34. Nc6 {[%clk 0:00:08]}  Rxb1 {[%clk 0:00:12]} 35. Rxb1 {[%clk 0:00:08]}  d2 {[%clk 0:00:12]} 36. Nxd8 {[%clk 0:00:04]}  d1=Q+ {[%clk 0:00:12]} 37. Rxd1 {[%clk 0:00:05]}  Qxd1+ {[%clk 0:00:13]} 38. Kh2 {[%clk 0:00:06]}  Qxd8 {[%clk 0:00:14]} 39. Qxh5 {[%clk 0:00:05]}  Qd4 {[%clk 0:00:14]} 40. Qg5 {[%clk 0:00:05]}  Qxf2 {[%clk 0:00:12]} 41. h5 {[%clk 0:00:05]}  Qf7 {[%clk 0:00:07]} 42. h6 {[%clk 0:00:05]}  Kb6 {[%clk 0:00:07]} 43. Qg7 {[%clk 0:00:05]}  Qh5+ {[%clk 0:00:07]} 44. Kg3 {[%clk 0:00:06]}  Ne8 {[%clk 0:00:05]} 45. Qf8 {[%clk 0:00:05]}  Qg6+ {[%clk 0:00:05]} 46. Kh3 {[%clk 0:00:05]}  Qh5+ {[%clk 0:00:03]} 47. Kg3 {[%clk 0:00:06]}  Qg6+ {[%clk 0:00:03]} 48. Kf3 {[%clk 0:00:06]}  Qh5+ {[%clk 0:00:04]} 49. g4 {[%clk 0:00:05]}  Qxe5 {[%clk 0:00:03]} 50. Qxe8 {[%clk 0:00:04]}  Qf6+ {[%clk 0:00:03]} 51. Ke4 {[%clk 0:00:05]}  Qxh6 {[%clk 0:00:04]} 52. Qb8+ {[%clk 0:00:05]}  Ka6 {[%clk 0:00:04]} 53. Qc8+ {[%clk 0:00:05]}  Kb6 {[%clk 0:00:05]} 54. Qb8+ {[%clk 0:00:06]}  Ka6 {[%clk 0:00:05]} 55. Ke5 {[%clk 0:00:06]}  Qh2+ {[%clk 0:00:05]} 56. Kxe6 {[%clk 0:00:05]}  Qxb8 {[%clk 0:00:06]} 0-1


[Site "https://www.chess.com"]

[Event "Titled Tuesday Blitz May 24 Late 2022"]
[White "Kamsky, Gata"]
[Black "Tarigan, Gilbert Elroy"]
[WhiteFideId "2000024"]
[BlackFideId "7108133"]
[WhiteElo "2645"]
[BlackElo "1908"]
[Result "1-0"]
[Round "05"]
[TimeControl "180+1"]
[Date "2022.05.24"]
[WhiteClock "0:00:44"]
[BlackClock "0:00:18"]

1. d4 {[%clk 0:03:00]}  d5 {[%clk 0:02:58]} 2. Bf4 {[%clk 0:03:00]}  Nf6 {[%clk 0:02:56]} 3. e3 {[%clk 0:03:00]}  g6 {[%clk 0:02:56]} 4. c3 {[%clk 0:02:56]}  Bg7 {[%clk 0:02:56]} 5. Nd2 {[%clk 0:02:56]}  O-O {[%clk 0:02:54]} 6. Ngf3 {[%clk 0:02:56]}  Nfd7 {[%clk 0:02:44]} 7. h4 {[%clk 0:02:51]}  Nf6 {[%clk 0:02:41]} 8. Ne5 {[%clk 0:02:49]}  h5 {[%clk 0:02:37]} 9. Be2 {[%clk 0:02:48]}  c5 {[%clk 0:02:32]} 10. g4 {[%clk 0:02:46]}  hxg4 {[%clk 0:02:31]} 11. Nxg4 {[%clk 0:02:46]}  Nh5 {[%clk 0:01:47]} 12. Nh6+ {[%clk 0:02:42]}  Kh7 {[%clk 0:01:43]} 13. Bxh5 {[%clk 0:02:41]}  Bxh6 {[%clk 0:01:41]} 14. Bxh6 {[%clk 0:02:40]}  Kxh6 {[%clk 0:01:42]} 15. Be2 {[%clk 0:02:20]}  cxd4 {[%clk 0:01:42]} 16. exd4 {[%clk 0:02:18]}  Nc6 {[%clk 0:01:39]} 17. Nf3 {[%clk 0:02:16]}  Kg7 {[%clk 0:01:32]} 18. Qd2 {[%clk 0:01:57]}  Bg4 {[%clk 0:01:30]} 19. O-O-O {[%clk 0:01:55]}  Rh8 {[%clk 0:01:26]} 20. Rdg1 {[%clk 0:01:53]}  Bh5 {[%clk 0:01:20]} 21. Ng5 {[%clk 0:01:46]}  e6 {[%clk 0:01:08]} 22. Bd3 {[%clk 0:01:36]}  Qf6 {[%clk 0:01:03]} 23. Kb1 {[%clk 0:01:30]}  Rab8 {[%clk 0:01:01]} 24. Rg3 {[%clk 0:01:27]}  b5 {[%clk 0:01:01]} 25. b4 {[%clk 0:00:52]}  a5 {[%clk 0:00:59]} 26. a3 {[%clk 0:00:52]}  axb4 {[%clk 0:00:59]} 27. axb4 {[%clk 0:00:52]}  Ne7 {[%clk 0:01:00]} 28. Kb2 {[%clk 0:00:49]}  Nc8 {[%clk 0:00:47]} 29. Qe3 {[%clk 0:00:49]}  Nd6 {[%clk 0:00:44]} 30. Qe5 {[%clk 0:00:48]}  Qxe5 {[%clk 0:00:37]} 31. dxe5 {[%clk 0:00:48]}  Nc4+ {[%clk 0:00:37]} 32. Bxc4 {[%clk 0:00:48]}  bxc4 {[%clk 0:00:31]} 33. Ra1 {[%clk 0:00:46]}  Ra8 {[%clk 0:00:29]} 34. Rgg1 {[%clk 0:00:45]}  Be2 {[%clk 0:00:17]} 35. Rxa8 {[%clk 0:00:44]}  Rxa8 {[%clk 0:00:18]} 36. Ra1 {[%clk 0:00:44]} 1-0


[Site "https://www.chess.com"]

[Event "Titled Tuesday Blitz May 24 Late 2022"]
[White "Kim, Sergey"]
[Black "Roman, Rodrigo"]
[WhiteFideId "13700570"]
[BlackFideId "3701220"]
[WhiteElo "2555"]
[BlackElo "2001"]
[Result "0-1"]
[Round "05"]
[TimeControl "180+1"]
[Date "2022.05.25"]
[WhiteClock "0:01:46"]
[BlackClock "0:01:17"]

1. d4 {[%clk 0:03:00]}  Nf6 {[%clk 0:02:59]} 2. c4 {[%clk 0:03:00]}  e6 {[%clk 0:02:59]} 3. Nc3 {[%clk 0:03:00]}  Bb4 {[%clk 0:02:59]} 4. Qc2 {[%clk 0:03:00]}  c5 {[%clk 0:02:59]} 5. dxc5 {[%clk 0:02:59]}  Na6 {[%clk 0:03:00]} 6. Nf3 {[%clk 0:02:59]}  Nxc5 {[%clk 0:02:57]} 7. Bd2 {[%clk 0:02:59]}  b6 {[%clk 0:02:56]} 8. e3 {[%clk 0:02:59]}  Bb7 {[%clk 0:02:55]} 9. Be2 {[%clk 0:03:00]}  O-O {[%clk 0:02:53]} 10. O-O {[%clk 0:03:00]}  d5 {[%clk 0:02:50]} 11. Rfd1 {[%clk 0:03:00]}  Qe7 {[%clk 0:02:43]} 12. Be1 {[%clk 0:02:52]}  dxc4 {[%clk 0:02:38]} 13. Bxc4 {[%clk 0:02:51]}  Rac8 {[%clk 0:02:32]} 14. Qe2 {[%clk 0:02:50]}  Bxf3 {[%clk 0:02:24]} 15. gxf3 {[%clk 0:02:49]}  Ncd7 {[%clk 0:02:17]} 16. Bb3 {[%clk 0:02:46]}  Ne5 {[%clk 0:02:14]} 17. f4 {[%clk 0:02:40]}  Ng6 {[%clk 0:02:11]} 18. Qf3 {[%clk 0:02:38]}  Nh4 {[%clk 0:02:04]} 19. Qh3 {[%clk 0:02:37]}  Ng6 {[%clk 0:01:51]} 20. Rac1 {[%clk 0:02:29]}  Rc5 {[%clk 0:01:46]} 21. a3 {[%clk 0:02:24]}  Rh5 {[%clk 0:01:42]} 22. Qg3 {[%clk 0:02:12]}  Bxc3 {[%clk 0:01:37]} 23. Bxc3 {[%clk 0:02:11]}  Ne4 {[%clk 0:01:34]} 24. Qg2 {[%clk 0:02:11]}  Nxc3 {[%clk 0:01:33]} 25. Rxc3 {[%clk 0:02:08]}  Nh4 {[%clk 0:01:34]} 26. Qg4 {[%clk 0:01:59]}  Rh6 {[%clk 0:01:33]} 27. Kh1 {[%clk 0:01:57]}  Rg6 {[%clk 0:01:31]} 28. Qh3 {[%clk 0:01:47]}  Qb7+ {[%clk 0:01:20]} 29. Bd5 {[%clk 0:01:47]}  exd5 {[%clk 0:01:18]} 30. Qxh4 {[%clk 0:01:46]}  d4+ {[%clk 0:01:17]} 0-1


[Site "https://www.chess.com"]

[Event "Titled Tuesday Blitz May 24 Late 2022"]
[White "Kohler, Aran"]
[Black "Remolar Gallen, Jose"]
[WhiteFideId "1002856"]
[BlackFideId "2215187"]
[WhiteElo "2246"]
[BlackElo "2205"]
[Result "1-0"]
[Round "05"]
[TimeControl "180+1"]
[Date "2022.05.25"]
[WhiteClock "0:01:28"]
[BlackClock "0:00:25"]

1. d4 {[%clk 0:02:59]}  d5 {[%clk 0:02:12]} 2. Nf3 {[%clk 0:02:58]}  Nf6 {[%clk 0:02:11]} 3. Bg5 {[%clk 0:02:58]}  Ne4 {[%clk 0:02:10]} 4. h4 {[%clk 0:02:57]}  c5 {[%clk 0:02:02]} 5. e3 {[%clk 0:02:55]}  Nc6 {[%clk 0:01:58]} 6. c3 {[%clk 0:02:54]}  Qb6 {[%clk 0:01:57]} 7. Qb3 {[%clk 0:02:47]}  cxd4 {[%clk 0:01:35]} 8. Qxb6 {[%clk 0:02:40]}  axb6 {[%clk 0:01:35]} 9. exd4 {[%clk 0:02:40]}  Bg4 {[%clk 0:01:33]} 10. Nbd2 {[%clk 0:02:40]}  e6 {[%clk 0:01:31]} 11. Nxe4 {[%clk 0:02:37]}  dxe4 {[%clk 0:01:30]} 12. Nd2 {[%clk 0:02:37]}  f5 {[%clk 0:01:24]} 13. f3 {[%clk 0:02:35]}  exf3 {[%clk 0:01:23]} 14. gxf3 {[%clk 0:02:36]}  Bh5 {[%clk 0:01:23]} 15. Bb5 {[%clk 0:02:35]}  Bd6 {[%clk 0:01:19]} 16. Kf2 {[%clk 0:02:34]}  h6 {[%clk 0:01:14]} 17. Nc4 {[%clk 0:02:29]}  Bc7 {[%clk 0:01:10]} 18. Be3 {[%clk 0:02:19]}  O-O {[%clk 0:01:05]} 19. Bxc6 {[%clk 0:02:01]}  bxc6 {[%clk 0:01:04]} 20. f4 {[%clk 0:02:02]}  b5 {[%clk 0:00:59]} 21. Ne5 {[%clk 0:02:01]}  Bxe5 {[%clk 0:00:59]} 22. dxe5 {[%clk 0:01:56]}  Rfd8 {[%clk 0:00:58]} 23. Rhc1 {[%clk 0:01:33]}  Rab8 {[%clk 0:00:44]} 24. Rc2 {[%clk 0:01:32]}  Rd5 {[%clk 0:00:40]} 25. Rd2 {[%clk 0:01:30]}  Rbd8 {[%clk 0:00:39]} 26. Rxd5 {[%clk 0:01:29]}  Rxd5 {[%clk 0:00:39]} 27. b3 {[%clk 0:01:30]}  Kf7 {[%clk 0:00:38]} 28. a4 {[%clk 0:01:29]}  bxa4 {[%clk 0:00:31]} 29. bxa4 {[%clk 0:01:29]}  Rd3 {[%clk 0:00:31]} 30. a5 {[%clk 0:01:28]}  Rd8 {[%clk 0:00:27]} 31. a6 {[%clk 0:01:28]}  Ra8 {[%clk 0:00:25]} 32. a7 {[%clk 0:01:28]}  Ke7 {[%clk 0:00:25]} 33. Rb1 {[%clk 0:01:28]}  Kd7 {[%clk 0:00:25]} 34. Rb8 {[%clk 0:01:28]} 1-0


[Site "https://www.chess.com"]

[Event "Titled Tuesday Blitz May 24 Late 2022"]
[White "Kopczynski, Michal"]
[Black "Hasangatin, Ramil"]
[WhiteFideId "1124200"]
[BlackFideId "4122160"]
[WhiteElo "2235"]
[BlackElo "2399"]
[Result "0-1"]
[Round "05"]
[TimeControl "180+1"]
[Date "2022.05.25"]
[WhiteClock "0:00:02"]
[BlackClock "0:00:07"]

1. e4 {[%clk 0:02:48]}  d5 {[%clk 0:03:00]} 2. exd5 {[%clk 0:02:47]}  Qxd5 {[%clk 0:03:00]} 3. d4 {[%clk 0:02:45]}  e5 {[%clk 0:03:00]} 4. Be3 {[%clk 0:02:40]}  Nc6 {[%clk 0:02:58]} 5. c4 {[%clk 0:02:35]}  Qa5+ {[%clk 0:02:52]} 6. Bd2 {[%clk 0:02:34]}  Bb4 {[%clk 0:02:51]} 7. d5 {[%clk 0:02:35]}  Bxd2+ {[%clk 0:02:50]} 8. Qxd2 {[%clk 0:02:31]}  Qxd2+ {[%clk 0:02:44]} 9. Nxd2 {[%clk 0:02:32]}  Nb4 {[%clk 0:02:37]} 10. Kd1 {[%clk 0:02:22]}  Bg4+ {[%clk 0:02:33]} 11. Ngf3 {[%clk 0:02:10]}  Nf6 {[%clk 0:02:21]} 12. a3 {[%clk 0:02:00]}  Na6 {[%clk 0:02:16]} 13. b4 {[%clk 0:01:51]}  e4 {[%clk 0:02:16]} 14. h3 {[%clk 0:01:50]}  Bh5 {[%clk 0:01:57]} 15. g4 {[%clk 0:01:50]}  Nxg4 {[%clk 0:01:57]} 16. hxg4 {[%clk 0:01:47]}  Bxg4 {[%clk 0:01:58]} 17. Rg1 {[%clk 0:01:22]}  f5 {[%clk 0:01:32]} 18. Rxg4 {[%clk 0:01:12]}  fxg4 {[%clk 0:01:33]} 19. Ne5 {[%clk 0:01:06]}  O-O {[%clk 0:01:26]} 20. Nxg4 {[%clk 0:01:03]}  Rf4 {[%clk 0:01:26]} 21. Be2 {[%clk 0:00:57]}  Raf8 {[%clk 0:01:19]} 22. c5 {[%clk 0:00:41]}  Nb8 {[%clk 0:01:12]} 23. Ne3 {[%clk 0:00:28]}  Nd7 {[%clk 0:01:05]} 24. Bc4 {[%clk 0:00:27]}  Ne5 {[%clk 0:01:04]} 25. Bb3 {[%clk 0:00:26]}  Kh8 {[%clk 0:00:59]} 26. Kc2 {[%clk 0:00:22]}  Rxf2 {[%clk 0:00:57]} 27. Kc3 {[%clk 0:00:22]}  Re2 {[%clk 0:00:46]} 28. Ndc4 {[%clk 0:00:18]}  Rf3 {[%clk 0:00:34]} 29. d6 {[%clk 0:00:11]}  cxd6 {[%clk 0:00:27]} 30. cxd6 {[%clk 0:00:12]}  Nxc4 {[%clk 0:00:21]} 31. d7 {[%clk 0:00:11]}  Rexe3+ {[%clk 0:00:16]} 32. Kxc4 {[%clk 0:00:11]}  Rd3 {[%clk 0:00:12]} 33. Ba4 {[%clk 0:00:12]}  a6 {[%clk 0:00:10]} 34. b5 {[%clk 0:00:12]}  Rxd7 {[%clk 0:00:07]} 35. bxa6 {[%clk 0:00:12]}  Rc7+ {[%clk 0:00:07]} 36. Kb4 {[%clk 0:00:13]}  bxa6 {[%clk 0:00:07]} 37. Re1 {[%clk 0:00:13]}  e3 {[%clk 0:00:06]} 38. Rd1 {[%clk 0:00:12]}  g5 {[%clk 0:00:05]} 39. Ka5 {[%clk 0:00:09]}  Rf4 {[%clk 0:00:04]} 40. Kb6 {[%clk 0:00:09]}  Re7 {[%clk 0:00:03]} 41. Bb3 {[%clk 0:00:07]}  Kg7 {[%clk 0:00:03]} 42. Kxa6 {[%clk 0:00:05]}  e2 {[%clk 0:00:04]} 43. Re1 {[%clk 0:00:05]}  Rf1 {[%clk 0:00:04]} 44. Rxe2 {[%clk 0:00:04]}  Rxe2 {[%clk 0:00:05]} 45. a4 {[%clk 0:00:05]}  Rf6+ {[%clk 0:00:06]} 46. Kb5 {[%clk 0:00:04]}  Re5+ {[%clk 0:00:06]} 47. Kb4 {[%clk 0:00:05]}  Rf4+ {[%clk 0:00:07]} 48. Ka3 {[%clk 0:00:05]}  Re3 {[%clk 0:00:07]} 49. Ka2 {[%clk 0:00:05]}  Rf2+ {[%clk 0:00:08]} 50. Ka1 {[%clk 0:00:03]}  Re1+ {[%clk 0:00:06]} 51. Bd1 {[%clk 0:00:02]}  Rxd1# {[%clk 0:00:07]} 0-1


[Site "https://www.chess.com"]